bitfinex/quotes_SOLUSD_20241210
["timestamp","ask_amount","ask_price","bid_price","bid_amount"]
[1733797405683,6.5925,216.7,216.65,22.52241382]
[1733797405876,6.5925,216.7,216.63,22.52241382]
[1733797406177,6.5925,216.7,216.63,312.0]
[1733797406390,6.5925,216.7,216.61,22.52241382]
[1733797407077,6.5925,216.7,216.59,22.52241382]
[1733797407378,6.5925,216.7,216.58,22.52241382]
[1733797407780,6.5925,216.7,216.59,22.52241382]
[1733797408072,6.5925,216.7,216.51,11.5468]
[1733797408073,6.5925,216.7,216.61,22.52241382]
[1733797408284,6.5925,216.7,216.62,22.52241382]
[1733797408462,6.5925,216.7,216.64,22.52241382]
[1733797409054,6.5925,216.7,216.63,22.52241382]
[1733797409276,6.5925,216.7,216.63,334.52241382]
[1733797409498,6.5925,216.7,216.62,22.52241382]
[1733797409786,6.5925,216.7,216.61,22.52241382]
[1733797410110,6.5925,216.7,216.63,22.52241382]
[1733797410271,6.5925,216.7,216.62,22.52241382]
[1733797410459,6.5925,216.7,216.61,22.52241382]
[1733797412063,6.5925,216.7,216.6,22.52241382]
[1733797412456,6.5925,216.7,216.57,334.52241382]
[1733797412661,6.5925,216.7,216.53,11.5455]
[1733797412662,6.5925,216.7,216.58,22.52241382]
[1733797412862,6.5925,216.7,216.5,1.85397636]
[1733797412863,6.5925,216.7,216.59,22.52241382]
[1733797413175,6.5925,216.7,216.61,22.52241382]
[1733797413366,6.5925,216.7,216.62,22.52241382]
[1733797413568,6.5925,216.7,216.6,22.52241382]
[1733797414176,6.5925,216.7,216.59,22.52241382]
[1733797414378,6.5925,216.7,216.58,22.52241382]
[1733797415608,6.5925,216.7,216.58,334.52241382]
[1733797416177,6.5925,216.7,216.57,22.52241382]
[1733797416578,20.0,216.67,216.5,22.52241382]
[1733797416973,20.0,216.63,216.49,22.52241382]
[1733797417274,20.0,216.63,216.48,22.52241382]
[1733797417685,20.0,216.63,216.47,22.52241382]
[1733797417899,20.0,216.58,216.44,22.52241382]
[1733797418196,20.0,216.58,216.41,22.52241382]
[1733797418197,1.6483,216.57,216.41,22.52241382]
[1733797418368,20.0,216.53,216.4,22.52241382]
[1733797418571,20.0,216.53,216.39,22.52241382]
[1733797418797,20.0,216.53,216.42,22.52241382]
[1733797419597,20.0,216.53,216.41,22.52241382]
[1733797419901,20.0,216.53,216.39,22.52241382]
[1733797420076,6.5084,216.52,216.29,18.59892801]
[1733797420280,20.0,216.49,216.36,22.52241382]
[1733797420687,20.0,216.49,216.37,22.52241382]
[1733797421195,20.0,216.49,216.35,22.52241382]
[1733797421776,20.0,216.49,216.34,22.52241382]
[1733797421980,6.5084,216.44,216.28,0.5454956]
[1733797422215,20.0,216.41,216.28,0.5454956]
[1733797423289,20.0,216.37,216.28,0.5454956]
[1733797424982,6.5084,216.4,216.31,22.52241382]
[1733797425188,6.5084,216.4,216.35,22.52241382]
[1733797425805,6.5084,216.4,216.36,22.52241382]
[1733797426099,7.7843,216.45,216.36,22.52241382]
[1733797426296,6.1838,216.45,216.38,22.52241382]
[1733797426683,6.1838,216.5,216.41,22.52241382]
[1733797426883,6.1838,216.5,216.4,22.52241382]
[1733797427080,6.1838,216.5,216.39,22.52241382]
[1733797427498,6.1838,216.5,216.33,20.0]
[1733797427685,6.1838,216.5,216.37,22.52241382]
[1733797427880,6.1838,216.5,216.36,22.52241382]
[1733797428086,20.0,216.47,216.31,22.52241382]
[1733797428286,20.0,216.47,216.3,22.52241382]
[1733797428701,20.0,216.47,216.31,22.52241382]
[1733797429105,20.0,216.47,216.26,22.52241382]
[1733797429106,20.0,216.47,216.32,22.52241382]
[1733797429305,20.0,216.47,216.31,22.52241382]
[1733797429703,20.0,216.47,216.3,22.52241382]
[1733797429900,20.0,216.47,216.28,335.06790942]
[1733797429901,20.0,216.42,216.28,335.06790942]
[1733797430092,20.0,216.42,216.28,0.5454956]
[1733797430491,20.0,216.42,216.3,22.52241382]
[1733797430813,20.0,216.42,216.28,0.5454956]
[1733797430814,20.0,216.42,216.31,22.52241382]
[1733797431115,20.0,216.42,216.32,22.52241382]
[1733797431296,6.1838,216.45,216.32,22.52241382]
[1733797431706,20.0,216.42,216.31,22.52241382]
[1733797431886,20.0,216.42,216.3,22.52241382]
[1733797432609,20.0,216.42,216.28,0.5454956]
[1733797432817,0.12549,216.41,216.28,0.5454956]
[1733797432998,6.1838,216.39,216.28,0.5454956]
[1733797433998,6.1838,216.39,216.28,23.06790942]
[1733797434410,6.1838,216.39,216.3,22.52241382]
[1733797435118,6.1838,216.39,216.29,22.52241382]
[1733797435316,6.1838,216.39,216.28,0.5454956]
[1733797436097,20.0,216.36,216.28,0.5454956]
[1733797437311,6.1838,216.39,216.31,22.52241382]
[1733797437508,6.1838,216.39,216.34,22.52241382]
[1733797437705,6.1838,216.39,216.32,22.52241382]
[1733797438217,6.1838,216.39,216.34,22.52241382]
[1733797438407,6.1838,216.39,216.29,0.12549]
[1733797438408,6.1838,216.46,216.35,22.52241382]
[1733797438605,6.1838,216.46,216.33,22.52241382]
[1733797438797,6.1838,216.46,216.35,22.52241382]
[1733797439115,6.1838,216.46,216.34,22.52241382]
[1733797439307,6.1838,216.46,216.33,22.52241382]
[1733797439509,6.1838,216.46,216.34,22.52241382]
[1733797439911,6.1838,216.46,216.36,22.52241382]
[1733797440221,6.1838,216.46,216.38,22.52241382]
[1733797440617,6.1838,216.46,216.38,334.52241382]
[1733797440934,6.1838,216.46,216.39,22.52241382]
[1733797441302,6.1838,216.46,216.37,22.52241382]
[1733797441521,6.1838,216.46,216.35,22.52241382]
[1733797441937,6.1838,216.46,216.32,22.52241382]
[1733797442115,20.0,216.43,216.29,22.52241382]
[1733797442299,20.0,216.43,216.28,23.06790942]
[1733797442502,20.0,216.43,216.29,22.52241382]
[1733797442697,20.0,216.43,216.33,22.52241382]
[1733797443106,20.0,216.43,216.34,22.52241382]
[1733797443421,6.1838,216.46,216.34,22.52241382]
[1733797444027,6.1838,216.46,216.35,22.52241382]
[1733797444338,6.1838,216.46,216.36,22.52241382]
[1733797444831,6.1838,216.46,216.39,22.52241382]
[1733797445021,6.1838,216.46,216.4,22.52241382]
[1733797445226,6.2204,216.55,216.43,22.52241382]
[1733797445545,6.2204,216.55,216.46,22.52241382]
[1733797445706,6.2204,216.55,216.41,0.12549]
[1733797445707,6.2204,216.55,216.42,22.52241382]
[1733797446541,6.2204,216.55,216.43,22.52241382]
[1733797446745,6.2204,216.55,216.39,22.52241382]
[1733797447238,6.2204,216.55,216.38,22.52241382]
[1733797447424,20.0,216.52,216.38,22.52241382]
[1733797447625,20.0,216.52,216.39,22.52241382]
[1733797448130,20.0,216.52,216.36,22.52241382]
[1733797448318,20.0,216.52,216.37,22.52241382]
[1733797448519,20.0,216.52,216.38,22.52241382]
[1733797449723,20.0,216.48,216.35,22.52241382]
[1733797450537,20.0,216.43,216.3,22.52241382]
[1733797451043,20.0,216.43,216.32,22.52241382]
[1733797451224,20.0,216.43,216.33,22.52241382]
[1733797451747,20.0,216.43,216.32,22.52241382]
[1733797452054,20.0,216.43,216.28,0.5454956]
[1733797452055,20.0,216.43,216.31,22.52241382]
[1733797452624,20.0,216.43,216.3,22.52241382]
[1733797453737,20.0,216.43,216.29,22.52241382]
[1733797453938,20.0,216.43,216.28,23.06790942]
[1733797454755,20.0,216.39,216.28,0.5454956]
[1733797455044,20.0,216.34,216.28,0.5454956]
[1733797456023,6.1113,216.37,216.28,0.5454956]
[1733797456443,20.0,216.34,216.28,0.5454956]
[1733797457039,6.1113,216.37,216.28,0.5454956]
[1733797457232,20.0,216.34,216.28,0.5454956]
[1733797458852,6.1113,216.37,216.28,23.06790942]
[1733797459058,6.1113,216.37,216.29,22.52241382]
[1733797459251,6.1113,216.37,216.3,22.52241382]
[1733797459950,6.1113,216.37,216.31,22.52241382]
[1733797460326,6.1113,216.37,216.3,22.52241382]
[1733797460526,6.1113,216.37,216.31,22.52241382]
[1733797461458,6.1113,216.37,216.28,23.06790942]
[1733797461638,6.1113,216.37,216.28,0.5454956]
[1733797462238,20.0,216.34,216.28,0.5454956]
[1733797464450,6.1113,216.37,216.28,0.5454956]
[1733797465031,20.0,216.34,216.28,0.5454956]
[1733797466129,0.12549,216.33,216.28,0.5454956]
[1733797466554,1.594,216.32,216.28,0.3182956]
[1733797466738,6.6082,216.3,216.28,0.2727956]
[1733797467431,20.0,216.27,216.11,22.52241382]
[1733797468137,0.12549,216.26,216.11,22.52241382]
[1733797468443,20.12549,216.26,216.1,22.52241382]
[1733797468646,0.12549,216.26,216.11,22.52241382]
[1733797468848,0.12549,216.26,216.1,22.52241382]
[1733797469560,0.12549,216.26,216.09,22.52241382]
[1733797469759,0.12549,216.26,216.1,22.52241382]
[1733797470140,20.0,216.27,216.12,22.52241382]
[1733797470559,0.12549,216.26,216.1,22.52241382]
[1733797470746,0.12549,216.26,216.09,22.52241382]
[1733797471057,0.12549,216.26,216.1,22.52241382]
[1733797471264,0.12549,216.26,216.1,334.52241382]
[1733797471445,0.12549,216.26,216.1,22.52241382]
[1733797471649,20.0,216.27,216.12,22.52241382]
[1733797472172,20.0,216.27,216.11,22.52241382]
[1733797473269,6.6082,216.3,216.19,22.52241382]
[1733797473441,6.6082,216.3,216.2,22.52241382]
[1733797473848,6.6082,216.3,216.17,22.52241382]
[1733797474449,6.6082,216.3,216.17,334.52241382]
[1733797474669,6.6082,216.3,216.2,22.52241382]
[1733797474873,6.6082,216.3,216.19,22.52241382]
[1733797475463,6.6082,216.3,216.2,22.52241382]
[1733797476061,6.6082,216.3,216.19,22.52241382]
[1733797476446,6.6082,216.3,216.21,22.52241382]
[1733797476851,8.2022,216.35,216.22,22.52241382]
[1733797477366,8.2022,216.35,216.19,24.07601382]
[1733797477770,8.2022,216.35,216.22,22.52241382]
[1733797477974,8.2022,216.35,216.23,22.52241382]
[1733797478154,8.2022,216.35,216.22,334.52241382]
[1733797478345,8.2022,216.35,216.22,22.52241382]
[1733797478551,8.2022,216.35,216.21,22.52241382]
[1733797479168,8.2022,216.35,216.2,22.52241382]
[1733797479674,8.2022,216.35,216.21,22.52241382]
[1733797481071,8.2022,216.35,216.22,22.52241382]
[1733797481575,8.2022,216.35,216.22,334.52241382]
[1733797482268,8.2022,216.35,216.19,1.5536]
[1733797482269,20.0,216.32,216.19,22.52241382]
[1733797482468,20.0,216.32,216.18,22.52241382]
[1733797483682,20.0,216.32,216.17,22.52241382]
[1733797483971,20.0,216.32,216.15,22.52241382]
[1733797484154,20.0,216.32,216.14,24.12251382]
[1733797484357,0.12549,216.31,216.13,22.52241382]
[1733797484695,20.0,216.27,216.11,22.52241382]
[1733797485057,0.12549,216.26,216.09,22.52241382]
[1733797485476,0.12549,216.24,216.08,22.52241382]
[1733797485792,20.0,216.2,216.08,22.52241382]
[1733797486466,20.0,216.2,216.06,335.06790942]
[1733797486782,20.0,216.2,216.06,0.5454956]
[1733797487475,20.0,216.2,216.06,23.06790942]
[1733797488175,20.0,216.2,216.06,0.5454956]
[1733797488788,20.0,216.2,216.06,23.06790942]
[1733797489875,0.12549,216.19,216.06,0.5454956]
[1733797490282,20.0,216.2,216.06,23.06790942]
[1733797490961,21.79696955,216.2,216.06,23.06790942]
[1733797491456,21.79696955,216.2,216.06,0.5454956]
[1733797492285,0.12549,216.19,216.06,0.5454956]
[1733797494276,20.0,216.15,216.06,0.5454956]
[1733797495062,0.12549,216.14,216.06,0.5454956]
[1733797495875,20.0,216.15,216.06,0.5454956]
[1733797497266,20.0,216.15,215.94,20.35956029]
[1733797497267,0.12549,216.06,215.88,7.04072801]
[1733797497457,0.12549,216.01,215.85,22.52241382]
[1733797497862,0.12549,215.96,215.84,0.5454956]
[1733797498274,20.0,215.92,215.84,0.5454956]
[1733797498559,8.0513,215.95,215.72,22.52241382]
[1733797498560,0.12549,215.89,215.72,22.52241382]
[1733797499171,0.12549,215.89,215.74,22.52241382]
[1733797499488,20.0,215.9,215.75,22.52241382]
[1733797499656,20.0,215.92,215.77,22.52241382]
[1733797499861,20.0,215.92,215.74,22.52241382]
[1733797500164,20.0,215.92,215.77,22.52241382]
[1733797500368,20.12549,215.91,215.65,7.04072801]
[1733797500571,20.12549,215.91,215.72,22.52241382]
[1733797500778,20.0,215.89,215.75,22.52241382]
[1733797500978,20.0,215.89,215.76,22.52241382]
[1733797501185,20.0,215.92,215.77,22.52241382]
[1733797501362,20.0,215.92,215.76,22.52241382]
[1733797501863,6.442,215.95,215.85,22.52241382]
[1733797502061,6.442,215.95,215.84,22.52241382]
[1733797502269,6.442,215.95,215.83,22.52241382]
[1733797502672,6.442,215.95,215.83,334.52241382]
[1733797502866,6.442,216.08,215.87,22.52241382]
[1733797503183,6.442,216.08,215.83,312.0]
[1733797503184,6.442,216.08,215.92,22.52241382]
[1733797503364,6.442,216.08,215.86,22.52241382]
[1733797503572,10.0,216.07,215.84,22.52241382]
[1733797503881,6.442,216.08,215.89,22.52241382]
[1733797504082,6.442,216.08,215.9,22.52241382]
[1733797504467,8.26912432,216.08,215.9,22.52241382]
[1733797504671,8.26912432,216.08,215.91,22.52241382]
[1733797505087,8.26912432,216.08,215.88,22.52241382]
[1733797505291,6.442,216.08,215.91,22.52241382]
[1733797505861,6.442,216.08,215.94,22.52241382]
[1733797506084,6.442,216.08,215.94,334.52241382]
[1733797506384,6.442,216.08,215.95,22.52241382]
[1733797506968,6.442,216.08,215.99,22.52241382]
[1733797507182,6.442,216.08,216.0,22.52241382]
[1733797508370,6.442,216.15,216.03,22.52241382]
[1733797508978,6.442,216.15,216.04,22.52241382]
[1733797509185,6.442,216.15,216.05,22.52241382]
[1733797509488,6.442,216.15,216.0,0.12549]
[1733797509489,8.0513,216.23,216.09,22.52241382]
[1733797509689,6.442,216.23,216.11,22.52241382]
[1733797509988,6.442,216.23,216.14,22.52241382]
[1733797510202,6.442,216.23,216.15,22.52241382]
[1733797510487,6.442,216.23,215.83,230.97821212]
[1733797510488,6.442,216.23,216.08,22.52241382]
[1733797510905,6.442,216.23,216.01,10.0]
[1733797510906,6.442,216.23,216.09,22.52241382]
[1733797511104,6.442,216.23,216.11,22.52241382]
[1733797511385,6.442,216.23,216.13,22.52241382]
[1733797511596,6.442,216.23,216.05,44.714]
[1733797511597,6.442,216.23,216.09,22.52241382]
[1733797511789,6.442,216.23,216.1,22.52241382]
[1733797511992,6.442,216.23,216.15,22.52241382]
[1733797512494,6.442,216.23,216.14,22.52241382]
[1733797512795,6.442,216.23,216.09,22.52241382]
[1733797513000,6.442,216.23,216.07,22.52241382]
[1733797513195,20.0,216.2,216.09,312.0]
[1733797514097,0.12549,216.19,215.97,11.5752]
[1733797514400,0.12549,216.19,216.0,22.52241382]
[1733797514586,0.12549,216.19,215.92,24.7568]
[1733797514587,20.12549,216.17,215.98,22.52241382]
[1733797514786,20.12549,216.17,215.94,11.5752]
[1733797514787,0.12549,216.15,215.95,22.52241382]
[1733797514988,40.12549,216.17,215.95,22.52241382]
[1733797515185,0.12549,216.15,215.97,22.52241382]
[1733797516394,1.546,216.18,216.02,22.52241382]
[1733797516589,3.39284016,216.18,216.02,22.52241382]
[1733797516777,1.546,216.18,216.02,22.52241382]
[1733797516985,1.546,216.18,216.05,22.52241382]
[1733797517601,1.546,216.18,215.99,22.52241382]
[1733797517984,1.546,216.18,215.93,34.09971382]
[1733797517985,1.546,216.18,216.0,22.52241382]
[1733797518390,1.546,216.18,215.99,22.52241382]
[1733797518585,20.0,216.16,215.98,22.52241382]
[1733797519003,20.0,216.16,215.99,22.52241382]
[1733797519205,20.0,216.17,215.99,22.52241382]
[1733797519418,0.12549,216.16,215.99,22.52241382]
[1733797519699,1.546,216.18,216.02,22.52241382]
[1733797520413,0.12549,216.15,215.98,22.52241382]
[1733797520583,0.12549,216.15,215.98,334.52241382]
[1733797520976,20.0,216.16,216.0,22.52241382]
[1733797521195,20.0,216.16,216.01,22.52241382]
[1733797521400,1.546,216.18,216.02,22.52241382]
[1733797521598,1.546,216.18,216.03,22.52241382]
[1733797521796,1.546,216.18,216.05,22.52241382]
[1733797522193,6.5379,216.17,215.92,15.02159356]
[1733797522502,6.5379,216.17,215.97,22.52241382]
[1733797523219,0.12549,216.13,215.94,22.52241382]
[1733797523385,0.12549,216.11,215.93,22.52241382]
[1733797523710,0.12549,216.11,215.94,22.52241382]
[1733797523918,0.12549,216.12,215.94,22.52241382]
[1733797524079,20.12549,216.13,215.93,22.52241382]
[1733797524277,20.0,216.08,215.91,22.52241382]
[1733797524497,20.0,216.08,215.9,334.52241382]
[1733797525005,20.0,216.08,215.92,22.52241382]
[1733797525181,20.0,216.08,215.85,1.6465]
[1733797525182,20.0,216.08,215.94,22.52241382]
[1733797525782,20.0,216.08,215.95,22.52241382]
[1733797525991,20.0,216.08,215.94,22.52241382]
[1733797526192,6.5379,216.11,216.0,22.52241382]
[1733797526385,6.5379,216.11,216.05,22.52241382]
[1733797526585,6.5379,216.11,216.04,22.52241382]
[1733797526983,6.5379,216.11,216.02,22.52241382]
[1733797527411,6.5379,216.11,215.97,20.0]
[1733797527412,6.5379,216.11,216.07,22.52241382]
[1733797527707,6.0406,216.18,216.09,22.52241382]
[1733797527901,6.0406,216.18,216.11,22.52241382]
[1733797528582,6.0406,216.18,216.1,22.52241382]
[1733797529320,6.0406,216.18,216.09,312.0]
[1733797529490,6.0406,216.18,216.06,22.52241382]
[1733797529684,6.0406,216.18,216.02,0.12549]
[1733797529904,6.0406,216.18,216.09,22.52241382]
[1733797530091,6.0406,216.18,216.11,22.52241382]
[1733797530304,7.5506,216.24,216.11,22.64790382]
[1733797530597,7.5506,216.24,216.12,22.52241382]
[1733797530812,7.5506,216.24,216.1,22.52241382]
[1733797531187,7.5506,216.24,216.07,22.52241382]
[1733797531414,7.5506,216.24,216.06,22.52241382]
[1733797531708,20.0,216.21,216.04,22.52241382]
[1733797532411,20.0,216.21,216.05,22.52241382]
[1733797532992,20.0,216.21,216.06,22.52241382]
[1733797533689,20.0,216.21,216.07,22.52241382]
[1733797533889,20.0,216.21,216.06,22.52241382]
[1733797534214,20.0,216.21,216.04,22.52241382]
[1733797535788,20.0,216.21,216.05,22.52241382]
[1733797536225,0.12549,216.2,216.04,22.52241382]
[1733797536387,0.12549,216.2,216.03,22.52241382]
[1733797536703,0.12549,216.2,215.99,1.6292]
[1733797536704,0.12549,216.2,216.04,22.52241382]
[1733797537381,0.12549,216.2,216.03,22.52241382]
[1733797537907,0.12549,216.2,216.04,22.52241382]
[1733797538108,20.0,216.21,216.04,22.52241382]
[1733797538415,20.0,216.21,216.05,22.52241382]
[1733797538591,20.0,216.21,216.04,22.52241382]
[1733797538991,20.0,216.21,216.05,22.52241382]
[1733797539493,20.0,216.21,216.06,22.52241382]
[1733797540120,9.36482002,216.24,216.09,22.52241382]
[1733797540409,7.5506,216.24,216.1,22.52241382]
[1733797540602,7.5506,216.24,216.07,22.52241382]
[1733797540805,7.5506,216.24,216.06,22.52241382]
[1733797541390,0.12549,216.23,216.06,22.52241382]
[1733797541595,20.0,216.21,216.03,22.52241382]
[1733797542103,0.12549,216.2,216.03,22.52241382]
[1733797542299,0.12549,216.2,216.02,22.52241382]
[1733797542611,0.12549,216.2,216.03,22.52241382]
[1733797543134,0.12549,216.2,216.04,22.52241382]
[1733797543500,0.12549,216.2,216.03,22.52241382]
[1733797544204,7.5506,216.24,215.97,17.9472]
[1733797544205,20.0,216.16,216.0,22.52241382]
[1733797544410,0.12549,216.15,215.98,22.52241382]
[1733797544913,0.12549,216.15,215.99,22.52241382]
[1733797545420,0.12549,216.15,215.97,22.52241382]
[1733797545714,20.0,216.11,215.94,22.52241382]
[1733797545896,0.12549,216.1,215.91,22.52241382]
[1733797546095,6.4364,216.09,215.9,22.52241382]
[1733797546316,20.0,216.06,215.89,22.52241382]
[1733797547229,20.0,216.06,215.91,22.52241382]
[1733797547433,20.0,216.06,215.94,22.52241382]
[1733797550137,20.0,216.06,215.93,22.52241382]
[1733797551906,23.776884,216.05,215.92,22.52241382]
[1733797552334,23.776884,216.01,215.9,22.52241382]
[1733797553407,23.776884,216.01,215.89,22.52241382]
[1733797553616,23.776884,216.01,215.88,22.52241382]
[1733797554821,23.776884,216.01,215.87,22.52241382]
[1733797554822,6.4364,216.0,215.87,22.52241382]
[1733797555022,23.776884,215.99,215.89,22.52241382]
[1733797555543,23.776884,215.99,215.88,22.52241382]
[1733797556135,23.776884,215.99,215.89,22.52241382]
[1733797557104,23.776884,215.95,215.88,22.52241382]
[1733797557305,20.0,215.96,215.87,22.52241382]
[1733797557524,23.776884,215.95,215.86,22.52241382]
[1733797558755,23.776884,215.91,215.81,22.52241382]
[1733797559024,23.776884,215.91,215.74,1.5507]
[1733797559025,6.2901,215.9,215.79,22.52241382]
[1733797559243,23.776884,215.89,215.79,22.52241382]
[1733797559528,23.776884,215.89,215.74,1.5507]
[1733797559740,23.776884,215.89,215.79,22.52241382]
[1733797560045,23.776884,215.89,215.8,22.52241382]
[1733797560410,23.776884,215.89,215.83,22.52241382]
[1733797560606,23.776884,215.89,215.82,22.52241382]
[1733797561119,23.776884,215.89,215.84,22.52241382]
[1733797561826,23.776884,215.89,215.78,11.5853]
[1733797561827,6.2901,215.95,215.87,22.52241382]
[1733797562144,6.2901,215.95,215.86,22.52241382]
[1733797562642,6.2901,215.95,215.89,22.52241382]
[1733797562842,7.06430241,216.17,215.83,0.12549]
[1733797562843,6.2901,216.01,215.94,22.52241382]
[1733797563019,6.2901,216.01,215.95,22.52241382]
[1733797563213,6.2901,216.01,215.97,22.52241382]
[1733797563445,6.2901,216.07,215.97,22.52241382]
[1733797563636,6.2901,216.07,215.95,22.52241382]
[1733797563951,6.2901,216.07,215.96,22.52241382]
[1733797564234,6.2901,216.07,215.86,1.5507]
[1733797564235,6.2901,216.07,215.89,22.52241382]
[1733797564424,6.2901,216.07,215.93,22.52241382]
[1733797564735,23.776884,216.06,215.95,22.52241382]
[1733797564944,6.2901,216.07,215.96,22.52241382]
[1733797565542,6.2901,216.07,216.01,22.52241382]
[1733797565852,6.2901,216.07,215.97,22.52241382]
[1733797566142,6.2901,216.07,215.95,22.52241382]
[1733797566314,6.2901,216.07,215.93,22.52241382]
[1733797566517,6.2901,216.07,215.94,22.52241382]
[1733797567238,23.776884,216.06,215.94,22.52241382]
[1733797567531,23.776884,216.06,215.97,22.52241382]
[1733797567939,23.776884,216.06,215.99,312.0]
[1733797568137,23.776884,216.06,215.94,22.52241382]
[1733797568437,23.776884,216.06,215.93,22.52241382]
[1733797568641,23.776884,216.06,215.94,22.52241382]
[1733797569159,23.776884,216.06,215.92,22.52241382]
[1733797569337,23.776884,216.06,215.94,22.52241382]
[1733797569515,6.2901,216.07,215.98,22.52241382]
[1733797569859,6.2901,216.07,216.02,22.52241382]
[1733797570145,6.2901,216.13,216.05,22.52241382]
[1733797570836,6.2901,216.13,216.08,22.52241382]
[1733797571040,6.2901,216.13,216.09,22.52241382]
[1733797571212,6.2901,216.13,216.11,312.0]
[1733797571855,6.3064,216.19,216.12,22.52241382]
[1733797572152,6.3064,216.19,216.14,22.52241382]
[1733797572654,6.3064,216.19,216.09,22.52241382]
[1733797573031,6.3064,216.19,216.07,22.52241382]
[1733797573834,6.3064,216.19,216.1,22.52241382]
[1733797574267,6.3064,216.19,216.02,0.12549]
[1733797574450,6.3064,216.19,216.08,22.52241382]
[1733797574757,6.3064,216.19,216.1,22.52241382]
[1733797574968,6.3064,216.19,216.13,22.52241382]
[1733797575331,6.3064,216.19,216.1,312.0]
[1733797575546,6.3064,216.19,216.05,22.52241382]
[1733797576431,20.0,216.16,215.99,11.5744]
[1733797576752,1.5858,216.15,215.98,22.52241382]
[1733797577246,1.5858,216.15,216.02,22.52241382]
[1733797577441,1.5858,216.15,216.05,22.52241382]
[1733797577831,1.5858,216.15,216.03,22.52241382]
[1733797578035,1.5858,216.15,216.0,22.52241382]
[1733797578234,1.5858,216.15,215.99,22.52241382]
[1733797578436,1.5858,216.15,215.99,334.52241382]
[1733797578637,20.0,216.11,215.99,312.0]
[1733797581255,20.0,216.07,215.86,1.5579]
[1733797581454,20.0,216.07,215.93,22.52241382]
[1733797581669,20.0,216.07,215.9,22.52241382]
[1733797581870,20.0,216.07,215.86,1.5579]
[1733797581871,20.0,216.07,215.89,22.52241382]
[1733797582082,20.0,216.07,215.95,22.52241382]
[1733797582458,20.0,216.07,215.96,22.52241382]
[1733797582863,6.3064,216.1,215.89,10.0]
[1733797582864,6.3064,216.1,216.0,22.52241382]
[1733797583057,6.3064,216.1,215.93,0.12549]
[1733797583367,6.3064,216.1,215.96,22.52241382]
[1733797583565,6.3064,216.1,215.97,22.52241382]
[1733797584173,20.0,216.07,215.97,22.52241382]
[1733797584366,6.3064,216.1,215.99,22.52241382]
[1733797584564,6.3064,216.1,216.01,22.52241382]
[1733797584767,6.3064,216.1,215.99,22.52241382]
[1733797584968,6.3064,216.1,215.97,22.52241382]
[1733797585173,6.3064,216.1,215.96,22.52241382]
[1733797585374,6.3064,216.1,215.97,22.52241382]
[1733797585775,6.3064,216.1,215.96,22.52241382]
[1733797586193,20.0,216.07,215.96,22.52241382]
[1733797586358,20.0,216.03,215.91,22.52241382]
[1733797586557,20.0,216.03,215.9,22.52241382]
[1733797587277,20.0,216.03,215.91,22.52241382]
[1733797587861,8.1534,216.06,215.96,22.52241382]
[1733797588074,8.1534,216.06,215.97,22.52241382]
[1733797588274,8.1534,216.06,215.96,22.52241382]
[1733797589074,8.1534,216.06,215.91,22.52241382]
[1733797589383,8.1534,216.06,215.93,22.52241382]
[1733797589564,20.0,216.03,215.93,22.52241382]
[1733797590174,8.1534,216.06,215.96,22.52241382]
[1733797590773,8.1534,216.06,215.94,22.52241382]
[1733797590972,8.1534,216.06,215.94,334.52241382]
[1733797591402,8.1534,216.06,215.9,22.52241382]
[1733797591689,20.0,216.03,215.9,22.52241382]
[1733797592480,20.0,216.03,215.87,22.52241382]
[1733797593583,20.0,216.03,215.91,22.52241382]
[1733797593779,20.0,216.03,215.92,22.52241382]
[1733797594490,8.1534,216.06,215.95,22.52241382]
[1733797594710,8.1534,216.06,215.97,22.52241382]
[1733797594898,8.1534,216.06,215.96,22.52241382]
[1733797595503,8.1534,216.06,215.94,22.52241382]
[1733797595799,8.1534,216.06,215.92,22.52241382]
[1733797596210,20.0,216.03,215.9,22.52241382]
[1733797598795,20.0,216.03,215.89,22.52241382]